bitfinex/quotes_ETHUSD_20240730
["timestamp","ask_amount","ask_price","bid_price","bid_amount"]
[1722352250574,0.86925413,3319.9,3318.8,2.2515]
[1722352250738,0.86925413,3319.9,3318.8,5.26463]
[1722352251484,0.86925413,3319.9,3318.8,5.26458]
[1722352251687,0.86925413,3319.9,3318.8,2.2515]
[1722352251868,0.01805013,3319.8,3318.8,2.2515]
[1722352252387,0.01805013,3319.8,3318.8,5.26462]
[1722352252680,0.55,3320.0,3319.1,3.569]
[1722352252881,0.01805013,3319.9,3319.1,3.569]
[1722352253340,0.01805013,3319.9,3319.2,3.01276]
[1722352253542,3.178,3320.7,3319.2,3.01276]
[1722352253543,0.01805013,3320.3,3319.3,3.06024752]
[1722352253790,3.01165,3320.5,3319.3,3.0]
[1722352253955,0.31921513,3320.4,3319.3,6.01268]
[1722352254642,0.31921513,3320.4,3319.4,3.01253]
[1722352254888,0.01805013,3320.3,3319.4,3.01253]
[1722352255036,0.01805013,3320.3,3319.7,5.35655]
[1722352255238,0.01805013,3320.9,3319.8,3.06023229]
[1722352255480,0.01805013,3320.9,3319.8,3.0]
[1722352255691,0.01805013,3320.9,3319.9,0.835654]
[1722352256044,0.04248895,3320.9,3319.9,3.847784]
[1722352256244,0.1478954,3321.1,3320.0,0.06023307]
[1722352256482,0.1478954,3321.1,3320.2,3.01181]
[1722352256691,0.1478954,3321.1,3320.3,3.01177]
[1722352256908,0.1478954,3321.1,3320.3,0.658077]
[1722352257046,0.1478954,3321.1,3320.5,3.01158]
[1722352257248,0.1478954,3321.1,3320.5,5.39758]
[1722352257455,0.1478954,3321.1,3320.5,2.386]
[1722352258179,0.1478954,3321.1,3320.5,2.44622848]
[1722352258484,0.1478954,3321.1,3320.6,3.01148]
[1722352259065,0.55,3321.0,3320.6,3.01148]
[1722352259593,0.1478954,3321.1,3320.7,3.01135]
[1722352259756,0.1478954,3321.1,3320.8,3.01126]
[1722352259944,0.1478954,3321.1,3320.5,2.69643055]
[1722352259945,0.1478954,3321.1,3320.7,3.0114]
[1722352260147,0.1478954,3321.1,3320.8,0.30114]
[1722352260489,0.1478954,3321.1,3320.5,2.69643055]
[1722352260953,0.55,3321.0,3320.5,5.70796055]
[1722352261152,0.55,3321.0,3320.5,2.69643055]
[1722352261478,0.1478954,3321.1,3320.3,3.669767]
[1722352261479,0.1478954,3321.1,3320.6,3.62922403]
[1722352261647,0.1478954,3321.1,3320.9,2.2562]
[1722352261849,0.1478954,3321.1,3321.0,3.07135288]
[1722352262075,0.1478954,3321.1,3321.0,6.08249288]
[1722352263079,0.1478954,3321.1,3320.9,2.2562]
[1722352263291,0.1478954,3321.1,3320.4,2.3898]
[1722352263485,0.1478954,3321.1,3319.7,0.14734985]
[1722352263486,3.01115,3321.0,3319.9,2.2887]
[1722352263654,0.1478954,3321.1,3319.6,8.87006]
[1722352263655,3.36969349,3320.9,3319.6,8.87006]
[1722352264067,3.36969349,3320.9,3319.1,8.85879]
[1722352264068,3.01173,3320.4,3319.1,8.85879]
[1722352264358,0.04248895,3320.3,3319.4,3.01258]
[1722352264667,0.59248895,3320.5,3319.4,3.313818]
[1722352264998,0.59248895,3320.5,3319.1,5.846]
[1722352264999,3.01188,3320.2,3319.1,5.846]
[1722352265210,3.05424895,3320.4,3319.1,5.846]
[1722352265351,0.55,3320.3,3319.2,3.01276]
[1722352265547,0.55,3320.3,3319.1,5.846]
[1722352265548,0.55,3320.3,3319.3,0.06024223]
[1722352265775,0.55,3320.3,3319.6,3.01234]
[1722352266006,0.04248895,3320.7,3319.6,3.569]
[1722352266314,0.55,3320.2,3319.6,3.569]
[1722352266518,0.59248895,3320.5,3319.6,3.569]
[1722352266809,3.3721369,3320.4,3319.2,3.0]
[1722352266971,3.60425895,3320.3,3319.2,3.0]
[1722352267294,0.04248895,3320.2,3319.2,3.0]
[1722352267772,0.04248895,3320.2,3318.7,0.07498616]
[1722352267773,3.01215,3319.9,3318.7,0.07498616]
[1722352267975,3.35594395,3319.8,3318.7,0.07498616]
[1722352268295,0.59248895,3319.7,3318.7,0.07498616]
[1722352268821,3.01283,3319.2,3318.7,0.07498616]
[1722352269113,0.59248895,3319.1,3318.7,0.07498616]
[1722352269257,0.95300984,3319.1,3318.7,0.07498616]
[1722352269775,0.55,3319.1,3318.7,0.07498616]
[1722352270170,0.04248895,3319.0,3318.7,0.07498616]
[1722352270698,3.05544895,3319.0,3318.7,0.07498616]
[1722352270863,0.55,3318.9,3318.7,0.07498616]
[1722352271363,0.04248895,3319.0,3318.7,0.07498616]
[1722352271559,0.04248895,3319.1,3318.7,0.07498616]
[1722352271755,3.05540895,3319.1,3318.7,0.07498616]
[1722352271995,1.1568239,3319.0,3318.7,0.07498616]
[1722352272602,0.55,3319.0,3318.7,0.07498616]
[1722352272754,0.55,3319.3,3318.7,0.07498616]
[1722352272962,0.04248895,3319.3,3318.7,0.07498616]
[1722352274085,3.05521895,3319.3,3318.7,0.07498616]
[1722352274396,3.01264,3319.4,3318.7,0.07498616]
[1722352274397,0.59248895,3319.2,3318.7,0.07498616]
[1722352274595,0.55,3319.1,3318.7,0.07498616]
[1722352275201,0.04248895,3319.0,3318.7,0.07498616]
[1722352275405,3.01313,3318.8,3318.7,0.07498616]
[1722352275579,6.88182189,3318.8,3318.7,0.07498616]
[1722352275987,3.86869189,3318.8,3318.7,0.07498616]
[1722352276192,6.88182189,3318.8,3318.7,0.07498616]
[1722352276576,3.86869189,3318.8,3318.7,0.07498616]
[1722352276880,3.91118084,3318.8,3318.7,0.07498616]
[1722352277082,6.92431084,3318.8,3318.7,0.07498616]
[1722352277381,0.89805084,3318.8,3318.7,0.07498616]
[1722352277582,0.55,3318.8,3318.7,0.07498616]
[1722352278088,0.04248895,3318.9,3318.7,0.07498616]
[1722352278296,5.42267,3319.2,3318.7,0.07498616]
[1722352278297,0.55,3319.1,3318.7,0.07498616]
[1722352278482,0.04248895,3319.0,3318.7,0.07498616]
[1722352278807,3.05544895,3319.0,3318.7,0.07498616]
[1722352279016,1.15683789,3318.9,3318.7,0.07498616]
[1722352279235,3.05561895,3318.8,3318.7,0.07498616]
[1722352279404,0.59248895,3318.8,3318.7,0.07498616]
[1722352279609,3.56313,3318.8,3318.7,0.07498616]
[1722352279986,0.55,3318.8,3318.7,0.07498616]
[1722352280208,3.56313,3318.8,3318.7,0.07498616]
[1722352280412,1.2118649,3318.8,3318.7,0.07498616]
[1722352280620,0.55,3318.8,3318.7,0.07498616]
[1722352280785,0.4521957,3319.4,3318.7,0.07498616]
[1722352280786,0.55,3319.1,3318.7,0.07498616]
[1722352280981,0.04248895,3319.0,3318.7,0.07498616]
[1722352281320,0.59248895,3319.0,3318.7,0.07498616]
[1722352281536,0.04248895,3319.0,3318.7,0.07498616]
[1722352281738,0.55,3318.9,3318.7,0.07498616]
[1722352281940,2.497,3319.6,3318.7,0.07498616]
[1722352282107,0.74711527,3319.4,3318.7,0.07498616]
[1722352282302,0.04248895,3319.3,3318.7,0.07498616]
[1722352282844,3.01277,3319.2,3318.7,0.07498616]
[1722352283143,0.04248895,3319.1,3318.7,0.07498616]
[1722352283723,0.59248895,3319.1,3318.7,0.07498616]
[1722352283939,0.3605259,3319.0,3318.7,0.07498616]
[1722352284139,0.59248895,3318.9,3318.7,0.07498616]
[1722352284442,6.02626,3318.8,3318.7,0.07498616]
[1722352284740,6.61874895,3318.8,3318.7,0.07498616]
[1722352284941,15.08897895,3318.8,3318.7,0.07498616]
[1722352285499,12.07584895,3318.8,3318.7,0.07498616]
[1722352285738,13.5422429,3318.8,3318.7,0.07498616]
[1722352286126,8.0851429,3318.8,3318.7,0.07498616]
[1722352286329,6.57626,3318.8,3318.7,0.07498616]
[1722352287342,9.75426,3318.8,3318.7,0.07498616]
[1722352287501,12.76739,3318.8,3318.7,0.07498616]
[1722352287707,15.12809,3318.8,3318.7,0.07498616]
[1722352287921,21.14122,3318.8,3318.7,0.07498616]
[1722352288117,26.268472,3318.8,3318.7,6.16e-06]
[1722352288412,24.03978337,3318.8,3318.7,6.16e-06]
[1722352288647,27.05291337,3318.8,3318.7,6.16e-06]
[1722352289035,24.03978337,3318.8,3318.7,6.16e-06]
[1722352289238,23.255342,3318.8,3318.7,6.16e-06]
[1722352289432,27.05280259,3318.8,3318.7,6.16e-06]
[1722352289643,26.268472,3318.8,3318.7,6.16e-06]
[1722352289874,23.255342,3318.8,3318.7,6.16e-06]
[1722352291784,3.01448,3317.4,3316.6,3.0]
[1722352291982,3.01448,3317.4,3316.4,2.354]
[1722352291983,3.01466,3317.2,3316.4,2.354]
[1722352292204,0.04248895,3317.1,3316.4,2.354]
[1722352293378,3.05718895,3317.1,3316.4,2.354]
[1722352293708,0.59248895,3317.0,3316.5,0.2354]
[1722352293985,0.04248895,3316.9,3316.5,3.2354]
[1722352294893,0.04248895,3317.1,3316.5,3.2354]
[1722352295266,0.04248895,3317.5,3316.6,0.06030321]
[1722352295564,0.04248895,3317.5,3316.7,0.32957032]
[1722352296459,0.59248895,3317.7,3316.7,0.32957032]
[1722352296851,0.04248895,3317.7,3316.7,0.32957032]
[1722352297050,0.59248895,3317.7,3316.7,0.32957032]
[1722352297865,3.01426,3317.6,3316.7,0.32957032]
[1722352298063,0.59248895,3317.5,3316.7,0.32957032]
[1722352298451,0.04248895,3317.5,3316.7,0.32957032]
[1722352299778,0.04248895,3317.5,3316.8,0.33446703]
[1722352300095,0.55,3317.8,3316.7,0.32957032]
[1722352300299,5.4869,3318.5,3317.1,3.01462]
[1722352300508,3.01359,3318.3,3317.1,0.06028598]
[1722352300657,0.04248895,3318.2,3317.1,3.07490598]
[1722352300854,2.8127957,3318.9,3317.2,0.5426106]
[1722352300855,6.19137,3318.6,3317.2,0.5426106]
[1722352301074,3.0135,3318.4,3317.2,3.5571506]
[1722352301393,3.178,3318.6,3317.2,0.5426106]
[1722352301612,3.0139,3318.0,3317.0,2.3512]
[1722352301908,3.0141,3317.8,3317.0,2.3512]
[1722352302219,0.04248895,3317.9,3317.0,2.3512]
[1722352302220,0.59248895,3317.7,3317.0,2.3512]
[1722352302354,0.59248895,3317.7,3317.1,0.23512]
[1722352302355,0.04248895,3317.7,3317.1,0.23512]
[1722352302879,3.01436,3317.5,3316.8,3.0]
[1722352303089,0.59248895,3317.4,3316.6,3.0]
[1722352303259,0.59248895,3317.4,3316.6,3.55527]
[1722352303452,0.59248895,3317.4,3316.6,6.57034]
[1722352303698,0.59248895,3317.4,3316.7,0.06029536]
[1722352303699,0.55,3317.4,3316.7,0.06029536]
[1722352303899,0.55,3317.4,3316.8,3.01489]
[1722352304138,0.55,3317.4,3316.6,6.57038]
[1722352304139,0.55,3317.4,3316.6,3.55527]
[1722352304358,5.38533,3318.5,3316.6,3.55527]
[1722352304359,0.04248895,3317.3,3316.7,1.269208]
[1722352304488,0.04248895,3317.3,3316.6,3.0]
[1722352304800,3.01463,3317.2,3316.5,2.3173]
[1722352305001,0.04248895,3317.1,3316.5,2.3173]
[1722352305319,0.55,3317.5,3316.5,2.3173]
[1722352305502,0.04248895,3317.4,3316.5,2.3173]
[1722352305695,0.04248895,3317.4,3316.6,0.23776029]
[1722352305896,3.60689895,3317.4,3316.5,2.3173]
[1722352306411,3.01451,3317.3,3316.5,2.3173]
[1722352306614,0.59248895,3317.2,3316.5,2.3173]
[1722352307149,0.59248895,3317.2,3316.1,8.32252]
[1722352307440,0.59248895,3317.2,3316.2,3.01549]
[1722352307589,0.59248895,3317.2,3316.3,3.0]
[1722352307786,0.59248895,3317.2,3316.2,1.189149]
[1722352307989,3.01473,3317.1,3316.1,5.307]
[1722352308186,3.01473,3317.1,3316.1,2.307]
[1722352308187,3.60730895,3317.0,3316.1,2.307]
[1722352309092,0.59248895,3317.0,3315.7,2.4304]
[1722352309300,3.015,3316.8,3315.7,2.4304]
[1722352309593,6.19253,3317.3,3315.7,2.4304]
[1722352309594,3.90903895,3316.7,3315.7,2.4304]
[1722352310052,3.90908895,3316.7,3315.7,2.4304]
[1722352310395,0.04248895,3316.6,3315.7,2.4304]
[1722352311087,3.05761895,3316.6,3315.7,2.4304]
[1722352311319,3.05761895,3316.6,3315.2,5.49939]
[1722352311320,3.56523,3316.5,3315.2,5.49939]
[1722352311556,0.40326085,3316.4,3315.3,6.01631]
[1722352311737,0.40326085,3316.4,3315.4,3.01617]
[1722352311738,0.55,3316.3,3315.4,3.01617]
[1722352312069,0.55,3316.3,3315.6,3.01603]
[1722352312070,0.04248895,3316.2,3315.6,3.01603]
[1722352313282,0.55,3316.3,3315.7,3.01595]
[1722352313585,0.55,3316.6,3315.7,3.01588]
[1722352313718,3.178,3317.1,3315.8,2.3916]
[1722352313719,3.01486,3316.9,3315.8,2.3916]
[1722352313924,3.01486,3316.9,3315.9,35.0]
[1722352313925,0.59248895,3316.8,3315.9,35.0]
[1722352314225,3.05753895,3316.7,3315.9,35.0]
[1722352314426,0.55,3316.6,3315.9,35.0]
[1722352314656,0.04248895,3316.5,3316.0,3.04901288]
[1722352315077,0.04248895,3316.5,3316.1,2.2767]
[1722352315396,2.3538,3318.3,3316.2,0.06030276]
[1722352315565,2.3538,3318.3,3316.1,5.2767]
[1722352315566,3.01404,3317.8,3316.6,3.01513]
[1722352315727,3.01404,3317.8,3316.4,3.01528]
[1722352315728,0.04248895,3317.7,3316.4,3.01528]
[1722352315926,3.01424,3317.6,3316.4,3.618354]
[1722352316169,0.04248895,3317.5,3316.4,3.618324]
[1722352316387,0.04248895,3317.5,3316.5,3.01519]
[1722352316527,0.04248895,3317.5,3316.3,3.01532]
[1722352316731,0.04248895,3317.5,3316.4,3.01526]
[1722352317160,3.01441,3317.4,3316.2,3.01544]
[1722352317378,3.01441,3317.4,3316.3,3.0]
[1722352317379,0.34817885,3317.3,3316.3,3.0]
[1722352317561,0.04248895,3317.2,3316.3,3.0]
[1722352317768,0.04248895,3317.2,3316.3,6.01533]
[1722352317936,0.04248895,3317.2,3316.3,3.0]
[1722352318273,0.04248895,3317.2,3316.3,3.9479817]
[1722352318488,3.60713895,3317.2,3316.2,3.0]
[1722352318645,3.01478,3317.0,3316.1,2.2767]
[1722352318843,0.59248895,3316.9,3316.1,5.2767]
[1722352319121,0.59248895,3316.9,3316.1,2.2767]
[1722352319460,0.04248895,3316.9,3316.3,3.01532]
[1722352319661,0.04248895,3316.9,3316.1,2.2767]
[1722352319662,0.04248895,3316.9,3316.4,0.301532]
[1722352319966,0.04248895,3316.9,3316.2,3.01549]
[1722352320481,0.55,3317.0,3316.5,3.01515]
[1722352320688,0.55,3317.0,3316.3,3.07566177]
[1722352320895,0.55,3317.0,3316.1,5.2922]
[1722352321046,0.04248895,3316.9,3316.2,7.203122]
[1722352321242,0.55,3317.0,3316.2,7.203122]
[1722352321442,0.55,3317.0,3316.4,3.01526]
[1722352321643,0.55,3317.0,3316.2,7.203122]
[1722352321644,0.301404,3317.7,3316.7,3.01503]
[1722352321849,3.01381,3318.1,3316.8,0.301503]
[1722352322082,3.01378,3318.1,3316.9,5.27271]
[1722352322389,3.01365,3318.3,3316.9,2.2579]
[1722352322602,3.01386,3318.0,3316.9,2.2579]
[1722352322922,3.05645895,3317.9,3316.9,5.2579]
[1722352323100,0.8556459,3317.8,3316.9,2.2579]
[1722352323309,3.01442,3317.4,3316.4,2.4716]
[1722352323587,0.59248895,3317.3,3316.1,3.01557]
[1722352323754,0.04248895,3317.2,3316.1,3.01557]
[1722352323958,0.04248895,3317.2,3316.0,2.4716]
[1722352324161,3.01483,3317.0,3316.0,2.4716]
[1722352324500,3.01511,3316.7,3315.6,2.4365]
[1722352324790,0.04248895,3316.6,3315.6,5.45252]
[1722352324994,0.04248895,3316.6,3315.8,3.01585]
[1722352325487,3.514357,3316.9,3315.7,3.01587]
[1722352325488,0.04248895,3316.8,3315.7,3.01587]
[1722352325687,0.04248895,3316.8,3315.8,3.0]
[1722352325991,0.04248895,3316.8,3315.8,6.861087]
[1722352326311,0.04248895,3316.8,3315.9,0.06030894]
[1722352326452,0.04248895,3316.8,3315.8,6.861047]
[1722352326691,0.04248895,3316.8,3315.8,3.845237]
[1722352327024,3.01504,3316.7,3315.7,3.0]
[1722352327236,0.59248895,3316.8,3315.6,2.4365]
[1722352327237,0.04248895,3316.6,3315.6,8.45254]
[1722352327696,3.05769895,3316.6,3315.6,3.0]
[1722352327878,1.21227589,3316.5,3315.5,3.0]
[1722352328082,0.04248895,3316.4,3315.5,3.0]
[1722352328304,0.04248895,3316.4,3315.8,3.01582]
[1722352328633,0.04248895,3316.4,3315.6,3.016]
[1722352328782,0.04248895,3316.4,3315.7,6.97444]
[1722352328980,0.04248895,3316.4,3315.7,3.9585]
[1722352329389,0.04248895,3316.4,3315.7,3.97443]
[1722352329592,0.04248895,3316.4,3315.8,3.0]
[1722352330187,0.04248895,3316.4,3315.9,0.05878361]
[1722352330642,0.04248895,3316.6,3315.9,0.05878361]
[1722352330846,0.3607529,3316.5,3315.9,0.05878361]
[1722352331143,0.59248895,3316.4,3315.9,0.05878361]
[1722352331512,0.04248895,3316.3,3315.9,0.05878361]
[1722352332249,0.55,3316.4,3315.9,0.05878361]
[1722352332848,0.04248895,3316.3,3315.9,0.05878361]
[1722352333186,0.04248895,3316.6,3315.9,0.05878361]
[1722352336008,0.04248895,3316.6,3315.9,3.07454361]
[1722352336203,0.04248895,3316.6,3315.9,0.05878361]
[1722352336437,0.04248895,3316.6,3315.9,3.07450361]
[1722352336639,2.4876,3317.4,3315.9,3.07450361]
[1722352336640,0.04248895,3317.1,3316.1,3.01554]
[1722352336823,0.04248895,3317.1,3316.0,0.60745036]
[1722352337028,3.05721895,3317.1,3316.0,3.60745036]
[1722352337199,3.05716895,3317.1,3316.0,3.60745036]
[1722352337400,0.04248895,3317.1,3316.0,3.0]
[1722352337614,3.01482,3317.0,3316.0,3.0]
[1722352337810,0.04248895,3316.9,3316.0,3.0]
[1722352338144,0.89821985,3316.9,3316.0,3.0]
[1722352338937,0.59248895,3316.9,3316.1,3.01554]
[1722352339135,0.55,3316.8,3316.2,3.01549]
[1722352339338,0.55,3317.2,3316.2,3.01549]
[1722352339509,0.04248895,3317.1,3316.1,0.06030777]
[1722352339711,0.59248895,3317.1,3316.1,1.17943691]
[1722352339913,0.59248895,3317.1,3316.1,4.19493691]
[1722352340100,0.55,3317.0,3316.1,4.19493691]
[1722352340303,0.04248895,3316.9,3316.1,4.19493691]
[1722352341040,0.04248895,3316.9,3316.4,3.01531]
[1722352341248,0.04248895,3316.9,3316.3,5.69234]
[1722352341444,0.04248895,3316.9,3316.3,3.65970291]
[1722352341604,0.04248895,3316.9,3316.0,2.3796]
[1722352341953,3.01483,3317.0,3315.9,2.73578361]
[1722352342099,1.37604232,3316.9,3315.9,2.73578361]
[1722352342301,0.78347525,3316.8,3315.9,2.73578361]
[1722352342639,1.37592205,3316.7,3315.9,2.73578361]
[1722352342812,0.59248895,3316.7,3315.9,2.73578361]
[1722352343526,0.04248895,3316.7,3315.9,2.73578361]
[1722352343715,0.55,3316.6,3315.9,5.75150361]
[1722352343918,0.55,3316.9,3315.9,2.73578361]
[1722352344113,0.356478,3316.8,3315.9,2.73578361]
[1722352344316,0.55,3316.7,3315.9,2.73578361]
[1722352344707,0.04248895,3316.6,3315.9,0.05878361]
[1722352345322,0.04248895,3316.6,3315.9,3.13480509]
[1722352345568,0.55,3316.9,3315.9,3.13480509]
[1722352345767,0.04248895,3316.8,3316.0,0.31348051]
[1722352346073,0.04248895,3316.8,3316.1,0.06030655]
[1722352346237,0.55,3317.1,3316.3,3.0154]
[1722352346238,0.04248895,3317.0,3316.3,3.0154]
[1722352346566,0.04248895,3317.0,3316.3,3.01539]
[1722352346869,0.04248895,3317.0,3316.3,3.0154]
[1722352347075,0.55,3317.3,3316.4,2.78834]
[1722352347222,0.04248895,3317.2,3316.4,2.4868]
[1722352347428,0.04248895,3317.2,3316.0,3.32909051]
[1722352347666,0.78370715,3317.1,3316.0,3.32909051]
[1722352347964,0.59248895,3317.0,3316.2,3.01548]
[1722352348170,0.55,3316.9,3316.2,3.01548]
[1722352348467,0.04248895,3316.8,3316.2,3.34837605]
[1722352348633,0.04248895,3317.3,3316.2,3.34837605]
[1722352348830,0.78363252,3317.2,3316.2,3.34837605]
[1722352349088,1.37612147,3317.1,3316.2,3.34834605]
[1722352349373,0.59248895,3317.1,3316.4,3.01531]
[1722352349939,0.59248895,3317.1,3316.3,3.01535]
[1722352350139,0.55,3317.0,3316.3,3.01535]
[1722352350376,0.04248895,3317.1,3316.2,0.39319891]
[1722352350686,0.55,3317.4,3316.2,3.40868891]
[1722352350687,0.04248895,3317.3,3316.2,3.40868891]
[1722352350979,0.78344315,3317.2,3316.1,3.01557]
[1722352351139,1.3759321,3317.1,3316.1,3.01557]
[1722352351328,0.59248895,3317.1,3316.1,3.59622341]
[1722352351529,0.04248895,3317.1,3316.1,3.59622341]
[1722352351827,0.04248895,3317.1,3316.2,0.06030282]
[1722352352269,0.04248895,3317.1,3316.3,3.01532]
[1722352352473,0.04248895,3317.1,3316.5,3.01522]
[1722352352973,0.55,3317.4,3316.3,3.38095162]
[1722352352974,0.55,3317.4,3316.4,3.01531]
[1722352353280,6.6444257,3317.6,3316.4,3.01531]
[1722352353281,0.78278612,3317.3,3316.7,3.01499]
[1722352353441,0.4521957,3317.6,3316.4,0.0603028]
[1722352353442,0.04248895,3317.5,3316.6,3.01511]
[1722352353627,0.04248895,3317.5,3316.4,0.0603028]
[1722352353628,0.04248895,3317.5,3316.8,3.01486]
[1722352353829,0.73637527,3317.6,3316.7,3.01499]
[1722352354043,0.73637527,3317.6,3316.8,3.01494]
[1722352354378,0.73637527,3317.6,3316.7,3.07533349]
[1722352354764,0.55,3317.5,3316.7,3.07533349]
[1722352355232,0.55,3317.5,3316.7,3.07528349]
[1722352355579,0.55,3317.5,3316.8,3.01495]
[1722352355728,3.01383,3318.1,3316.8,3.01495]
[1722352355729,2.3436,3318.2,3317.1,3.0146]
[1722352355928,0.78341611,3318.1,3317.2,0.06028723]
[1722352356156,2.3436,3318.2,3317.2,3.07486723]
[1722352356368,2.57796,3318.2,3317.2,3.07486723]
[1722352356569,2.3436,3318.2,3317.2,3.07482723]
[1722352356771,2.3436,3318.2,3317.2,3.07481723]
[1722352356945,2.3436,3318.2,3317.2,3.07479723]
[1722352357134,2.677,3318.6,3317.2,0.06028723]
[1722352357329,1.09358542,3318.5,3317.3,3.01445]
[1722352357526,0.78339647,3318.4,3317.3,3.01445]
[1722352357728,3.05612895,3318.3,3317.1,3.01467]
[1722352357925,3.01386,3318.0,3316.7,3.89323435]
[1722352358174,2.4492,3317.8,3316.7,0.87825435]
[1722352358372,3.38418703,3317.7,3316.7,3.0]
[1722352358674,0.37002703,3317.7,3316.7,3.0]
[1722352358881,3.38415703,3317.7,3316.7,3.0]
[1722352359078,0.55,3317.6,3316.7,3.0]
[1722352359246,0.04248895,3317.5,3316.7,6.01498]
[1722352359451,0.04248895,3317.5,3316.2,2.2572]
[1722352359452,3.05679895,3317.5,3316.2,2.2572]
[1722352359667,1.69419528,3317.4,3315.9,3.07453361]
[1722352359967,2.4702,3317.1,3316.1,3.01554]
[1722352360146,0.59248895,3317.0,3315.9,0.05878361]
[1722352360350,0.59248895,3317.0,3315.9,3.07449361]
[1722352360566,3.60725895,3317.0,3315.9,3.07449361]
[1722352360770,0.59248895,3317.0,3315.9,3.07448361]
[1722352360963,0.6077389,3316.9,3315.9,0.05878361]
[1722352361168,3.60743895,3316.8,3315.9,0.05878361]
[1722352361369,0.04248895,3316.7,3315.9,0.05878361]
[1722352361803,0.55,3316.8,3315.9,3.07448361]
[1722352361953,0.04248895,3316.7,3315.9,0.05878361]
[1722352362450,0.55,3317.0,3316.1,3.0155]
[1722352362795,0.04248895,3316.9,3316.1,3.0155]
[1722352363150,0.04248895,3316.9,3316.1,3.01558]
[1722352363345,0.04248895,3316.9,3316.2,3.01548]
[1722352363552,0.04248895,3316.9,3316.0,3.01559]
[1722352363752,0.04248895,3316.9,3316.1,0.30743736]
[1722352364595,0.04248895,3316.9,3316.1,3.32301736]
[1722352364808,0.04248895,3316.9,3316.2,0.06030068]
[1722352365095,0.04248895,3316.9,3316.1,0.30743736]
[1722352365261,0.04248895,3316.9,3315.9,0.05878361]
[1722352365902,3.05737895,3316.9,3315.9,0.05878361]
[1722352366052,0.55,3316.8,3315.9,0.05878361]
[1722352366254,0.04248895,3316.7,3315.9,0.05878361]
[1722352367197,0.04248895,3316.7,3315.9,3.07454361]
[1722352367423,0.04248895,3316.7,3316.0,3.04901288]
[1722352367549,0.04248895,3316.9,3316.0,3.04901288]
[1722352367750,0.04248895,3316.9,3315.9,0.05878361]
[1722352368123,3.01504,3316.7,3315.9,0.05878361]
[1722352368251,0.04248895,3316.6,3315.9,0.05878361]
[1722352368852,0.04248895,3316.6,3315.9,3.07452361]
[1722352369048,0.04248895,3316.6,3315.9,0.05878361]
[1722352369497,0.04248895,3316.8,3315.9,0.05878361]
[1722352370114,0.30573989,3316.7,3315.9,0.05878361]
[1722352370395,0.59248895,3316.6,3315.9,0.05878361]
[1722352370692,0.59248895,3316.6,3315.9,3.07453361]
[1722352370905,0.55,3316.9,3315.9,3.07453361]
[1722352371064,0.55,3316.9,3315.9,0.05878361]
[1722352371065,0.04248895,3316.8,3315.9,0.05878361]
[1722352371264,0.3057359,3316.7,3315.9,0.05878361]
[1722352371566,0.55,3316.6,3315.9,0.05878361]
[1722352372170,6.02962,3317.0,3315.9,0.05878361]
[1722352372171,0.55,3316.9,3315.9,0.05878361]
[1722352372372,0.55,3316.9,3316.0,0.06031115]
[1722352372373,0.04248895,3316.8,3316.0,0.06031115]
[1722352372713,0.04248895,3316.8,3315.9,0.05878361]
[1722352372998,0.40321485,3316.8,3315.9,0.05878361]
[1722352373209,0.40321485,3316.8,3315.9,3.13480026]
[1722352373210,0.59248895,3316.7,3315.9,3.13480026]
[1722352373513,0.59248895,3316.7,3315.9,3.07449361]
[1722352373663,0.04248895,3316.7,3316.0,0.06030662]
[1722352374073,0.55,3317.0,3316.0,0.06030662]
[1722352374274,0.30202,3316.9,3316.1,3.01553]
[1722352374480,0.04248895,3317.0,3316.2,0.06030531]
[1722352374704,2.51268895,3317.1,3316.2,3.07575531]
[1722352374905,0.04248895,3317.3,3316.4,3.01529]
[1722352375562,0.04248895,3317.3,3316.3,0.53434553]
[1722352375778,0.04248895,3317.3,3316.1,2.2677]
[1722352375779,0.78323625,3317.2,3316.1,2.2677]
[1722352376121,2.307,3316.9,3315.9,0.05878361]
[1722352376441,0.04248895,3316.8,3315.9,3.07447361]
[1722352376777,0.04248895,3316.8,3315.9,0.05878361]
[1722352377173,0.59248895,3316.8,3315.9,0.05878361]
[1722352377405,0.04248895,3316.7,3315.9,0.05878361]
[1722352377604,0.59248895,3316.7,3315.9,0.05878361]
[1722352377813,0.59248895,3316.7,3316.0,3.01567]
[1722352377992,0.04248895,3316.7,3316.0,3.01562]
[1722352378170,0.04248895,3316.7,3315.9,3.07450361]
[1722352378374,0.04248895,3316.7,3315.9,6.12351649]
[1722352378625,0.04248895,3316.7,3316.0,3.01563]
[1722352378797,0.59248895,3317.0,3316.1,0.06030784]
[1722352379002,0.04248895,3317.2,3316.1,3.07582784]
[1722352379227,0.04248895,3317.4,3316.5,3.01517]
[1722352379501,0.04248895,3317.4,3316.4,5.29127]
[1722352379662,0.04248895,3317.4,3316.5,3.0755162]
[1722352379951,0.04248895,3317.4,3316.5,0.0602962]
[1722352380168,0.04248895,3317.4,3316.5,2.49277561]
[1722352380511,2.677,3316.9,3316.5,2.49277561]
[1722352380711,2.677,3316.9,3316.7,3.015]
[1722352381163,2.677,3316.9,3316.5,2.49277561]
[1722352381768,2.677,3316.9,3316.5,2.43247941]
[1722352382117,2.677,3316.9,3315.9,2.50168361]
[1722352382118,0.04248895,3316.8,3315.9,2.50168361]
[1722352382324,2.677,3316.4,3316.0,3.01563]
[1722352382524,2.677,3316.4,3315.9,0.05878361]
[1722352383210,2.677,3316.4,3315.9,3.07453361]
[1722352383440,2.677,3316.4,3316.0,3.92470236]
[1722352383648,2.677,3316.4,3316.0,0.90903236]
[1722352383850,2.677,3316.4,3315.9,0.05878361]
[1722352384577,2.677,3316.4,3316.1,3.01558]
[1722352385160,2.677,3316.4,3316.0,3.01563]
[1722352385354,0.59248895,3316.8,3316.0,3.01563]
[1722352385355,3.227,3316.8,3316.0,3.01562]
[1722352385514,3.26948895,3316.8,3316.1,3.01558]
[1722352385723,3.227,3316.8,3316.2,0.301558]
[1722352386086,3.227,3316.8,3316.3,0.06030312]
[1722352386224,2.677,3316.8,3316.3,3.07564312]
[1722352386426,2.677,3316.8,3316.5,3.01516]
[1722352386725,2.677,3316.8,3316.6,0.301516]